[Event "DVM U20 2019"]
[Site "Braunschweig"]
[Date "2019.12.30"]
[Round "7"]
[White "Keller, Yannik"]
[Black "Geltz, Noah"]
[Result "1/2-1/2"]
[ECO "B03"]
[WhiteElo "2020"]
[BlackElo "2054"]
[Annotator "NA"]
[PlyCount "120"]
[EventDate "2019.12.27"]
[EventType "team-tourn"]
[EventRounds "7"]
[EventCountry "GER"]
[SourceTitle "playchess.com"]
[Source "ChessBase"]
[SourceQuality "1"]
[WhiteTeam "Sges Bensheim"]
[BlackTeam "SF HN-Biberach"]
[TimeControl "40/5400+30:1800+30"]

1. e4 {[%emt 0:00:00]} Nf6 {[%emt 0:00:00]} 2. e5 {[%emt 0:00:00]} Nd5 {[%emt 0:00:00]} 3. d4 {[%emt 0:00:00]} d6 {[%emt 0:00:04]} 4. c4 {[%emt 0:00:00]} Nb6 {[%emt 0:00:08]} 5. f4 {[%emt 0:00:00] unterminated} dxe5 {[%emt 0:00:54] unterminated} 6. fxe5 {[%emt 0:03:53]} Nc6 {[%emt 0:00:32]} 7. Be3 {[%emt 0:00:09] unterminated} Bf5 {[%emt 0:01:04] unterminated} 8. Nc3 {[%emt 0:00:37]} e6 {[%emt 0:00:48]} 9. Nf3 {[%emt 0:00:34] unterminated} Bb4 {[%emt 0:02:17] unterminated} 10. Be2 {[%emt 0:04:21] unterminated} O-O {[%emt 0:03:49] unterminated} 11. O-O {[%emt 0:02:24] unterminated} f6 {[%emt 0:01:51] unterminated} 12. exf6 {[%emt 0:08:19]} Qxf6 {[%emt 0:00:46] unterminated} 13. Qb3 {[%emt 0:14:48] unterminated} Rad8 {[%emt 0:19:01] unterminated} 14. c5 {[%emt 0:16:22] unterminated} Nc8 $18 {[%emt 0:01:48]} 15. Rad1 {[%emt 0:10:24]} N8e7 {[%emt 0:18:14]} 16. Bg5 {[%emt 0:10:21]} Qf7 {[%emt 0:00:39]} 17. Bb5 {[%emt 0:05:49]} Bxc3 {[%emt 0:09:14]} 18. bxc3 {[%emt 0:00:23]} Rb8 {[%emt 0:01:37]} 19. Rde1 {[%emt 0:02:35]} Nd5 {[%emt 0:09:43]} 20. Bd2 {[%emt 0:04:50]} a6 {[%emt 0:01:14]} 21. Be2 {[%emt 0:01:21]} Qe7 {[%emt 0:05:20]} 22. Kh1 {[%emt 0:01:55]} Be4 {[%emt 0:02:40]} 23. Ng5 {[%emt 0:01:08]} Rxf1+ {[%emt 0:00:56]} 24. Rxf1 {[%emt 0:02:07]} Bf5 {[%emt 0:01:37]} 25. Bf3 {[%emt 0:01:50]} Qd7 {[%emt 0:03:07]} 26. Qa4 {[%emt 0:04:00]} Rf8 {[%emt 0:05:27]} 27. Re1 {[%emt 0:01:45]} h6 {[%emt 0:01:22]} 28. Ne4 {[%emt 0:00:24]} Qf7 {[%emt 0:01:39]} 29. Ng3 {[%emt 0:01:28]} Bd3 {[%emt 0:01:29]} 30. Qd1 {[%emt 0:00:20]} Bg6 {[%emt 0:01:06]} 31. Qe2 {[%emt 0:00:52]} Re8 {[%emt 0:04:24]} 32. Kg1 {[%emt 0:00:55]} Re7 {[%emt 0:00:24]} 33. Qc4 {[%emt 0:00:50]} Kh7 {[%emt 0:00:47]} 34. Qe2 {[%emt 0:00:53]} Nf4 {[%emt 0:01:27]} 35. Bxf4 {[%emt 0:00:05]} Qxf4 {[%emt 0:00:04]} 36. Qe3 {[%emt 0:00:34]} Qf6 {[%emt 0:00:31]} 37. Ne4 {[%emt 0:00:26]} Qf5 {[%emt 0:00:21]} 38. Ng3 {[%emt 0:00:59]} Qf6 {[%emt 0:00:22]} 39. Be4 {[%emt 0:00:15]} Bxe4 {[%emt 0:00:14]} 40. Qxe4+ {[%emt 0:00:09]} Qg6 {[%emt 0:00:24]} 41. Kf2 {[%emt 0:06:04]} Qxe4 {[%emt 0:01:43]} 42. Rxe4 {[%emt 0:00:42]} Kg8 {[%emt 0:01:17]} 43. Ke3 {[%emt 0:00:28]} Kf7 {[%emt 0:01:15]} 44. Rf4+ {[%emt 0:01:15]} Ke8 {[%emt 0:00:27]} 45. Rf1 {[%emt 0:01:39]} Kd7 {[%emt 0:02:47]} 46. Ke4 {[%emt 0:00:40]} Nd8 {[%emt 0:01:00]} 47. Nh5 {[%emt 0:00:57]} Ke8 {[%emt 0:03:04]} 48. h4 {[%emt 0:00:34]} Rf7 {[%emt 0:00:35]} 49. Rf4 {[%emt 0:01:15]} Rxf4+ {[%emt 0:00:40]} 50. Nxf4 {[%emt 0:00:13]} Kf7 {[%emt 0:02:23]} 51. Nd3 {[%emt 0:01:18]} Ke7 {[%emt 0:03:43]} 52. Ne5 {[%emt 0:00:23]} b6 {[%emt 0:00:46]} 53. cxb6 {[%emt 0:00:11]} cxb6 {[%emt 0:00:06]} 54. g4 {[%emt 0:05:26]} Nb7 {[%emt 0:00:32]} 55. c4 {[%emt 0:00:20]} Nd6+ {[%emt 0:02:07]} 56. Kd3 {[%emt 0:00:30]} Nb7 {[%emt 0:00:54]} 57. a4 {[%emt 0:00:48]} Kd6 {[%emt 0:00:55]} 58. Ke4 {[%emt 0:00:42]} Nd8 {[%emt 0:01:22] normal} 59. Kf4 {[%emt 0:00:47]} Ke7 {[%emt 0:01:35]} 60. g5 {[%emt 0:00:49] normal} Nb7 {[%emt 0:00:20] normal} 1/2-1/2

[Event "DVM U20 2019"]
[Site "Braunschweig"]
[Date "2019.12.30"]
[Round "7"]
[White "Wagner, Benjamin"]
[Black "Peukert, Marc"]
[Result "1-0"]
[ECO "B57"]
[WhiteElo "1994"]
[BlackElo "1518"]
[Annotator "NA"]
[PlyCount "41"]
[EventDate "2019.12.27"]
[EventType "team-tourn"]
[EventRounds "7"]
[EventCountry "GER"]
[SourceTitle "playchess.com"]
[Source "ChessBase"]
[SourceQuality "1"]
[WhiteTeam "SG Aufbau Elbe Magdeburg"]
[BlackTeam "USV TU Dresden"]
[TimeControl "40/5400+30:1800+30"]

1. e4 {[%emt 0:00:00]} c5 {[%emt 0:00:00]} 2. Nf3 {[%emt 0:00:00]} Nc6 {[%emt 0:00:22]} 3. d4 {[%emt 0:00:00]} cxd4 {[%emt 0:00:09]} 4. Nxd4 {[%emt 0:00:00]} d6 {[%emt 0:00:37]} 5. Nc3 {[%emt 0:00:20] unterminated} Nf6 {[%emt 0:00:33]} 6. Bc4 {[%emt 0:03:35] unterminated} g6 {[%emt 0:04:29] unterminated} 7. Nxc6 {[%emt 0:03:31] unterminated} bxc6 {[%emt 0:01:36]} 8. e5 {[%emt 0:02:37] unterminated} Nd7 {[%emt 0:19:47]} 9. exd6 {[%emt 0:01:53] unterminated} exd6 {[%emt 0:01:32] unterminated} 10. O-O {[%emt 0:13:00] unterminated} Ne5 {[%emt 0:12:46] unterminated} 11. Re1 {[%emt 0:01:50]} Be7 {[%emt 0:01:38] unterminated} 12. Bb3 {[%emt 0:10:16] unterminated} O-O $16 {[%emt 0:02:22]} 13. Bf4 {[%emt 0:05:25]} Ng4 {[%emt 0:05:18]} 14. h3 {[%emt 0:05:39]} Nf6 {[%emt 0:01:58]} 15. Rxe7 {[%emt 0:00:47]} Qxe7 {[%emt 0:05:35]} 16. Bxd6 {[%emt 0:00:22]} Qd8 {[%emt 0:00:45]} 17. Bxf8 {[%emt 0:00:16]} Qxf8 {[%emt 0:00:48]} 18. Qf3 {[%emt 0:00:58]} Qe7 {[%emt 0:04:21]} 19. Qxc6 {[%emt 0:03:45]} Bb7 {[%emt 0:00:22]} 20. Qa4 {[%emt 0:03:35]} Nh5 {[%emt 0:04:12]} 21. Rd1 {[%emt 0:03:39] normal} 1-0

[Event "DVM U20 2019"]
[Site "Braunschweig"]
[Date "2019.12.30"]
[Round "7"]
[White "Wiegersma, Justus"]
[Black "Rauch, Sören"]
[Result "1-0"]
[ECO "C11"]
[WhiteElo "1975"]
[BlackElo "1901"]
[Annotator "NA"]
[PlyCount "73"]
[EventDate "2019.12.27"]
[EventType "team-tourn"]
[EventRounds "7"]
[EventCountry "GER"]
[SourceTitle "playchess.com"]
[Source "ChessBase"]
[SourceQuality "1"]
[WhiteTeam "SK Turm Kleve"]
[BlackTeam "SG Trier"]
[TimeControl "40/5400+30:1800+30"]

1. e4 {[%emt 0:00:00]} e6 {[%emt 0:00:00]} 2. d4 {[%emt 0:00:00]} d5 {[%emt 0:00:00]} 3. Nc3 {[%emt 0:00:00]} Nf6 {[%emt 0:00:22]} 4. e5 {[%emt 0:00:02]} Nfd7 {[%emt 0:00:07]} 5. f4 {[%emt 0:00:06]} c5 {[%emt 0:00:23]} 6. Nf3 {[%emt 0:00:05]} Nc6 {[%emt 0:00:59]} 7. Be3 {[%emt 0:00:03] unterminated} a6 {[%emt 0:05:38] unterminated} 8. Qd2 {[%emt 0:01:16] unterminated} b5 {[%emt 0:03:40]} 9. Be2 {[%emt 0:00:24] unterminated} Qb6 {[%emt 0:04:27] unterminated} 10. Nd1 {[%emt 0:09:00] unterminated} cxd4 {[%emt 0:05:19] unterminated unterminated. C11: French: Classical System: 4 e5 and 4 Bg5 dxe4} 11. Nxd4 {[%emt 0:01:46] unterminated} Nxd4 {[%emt 0:07:33] unterminated} 12. Bxd4 {[%emt 0:01:37]} Bc5 {[%emt 0:00:22]} 13. c3 {[%emt 0:00:20] unterminated} Nb8 {[%emt 0:08:14] unterminated} (13... b4 14. O-O a5 15. Bg4 O-O 16. Ne3 Ba6 17. Rfe1 g6 18. Nxd5 exd5 19. Bxd7 {0-1 (43) Ponomariov,R (2712)-Wang,H (2717) Huaian 2016}) 14. Bxc5 $146 {[%emt 0:04:41] unterminated} ({Predecessor:} 14. Ne3 Nc6 15. Bxc5 Qxc5 16. Nc2 Bb7 17. b4 Qb6 18. Nd4 {½-½ (48) Souleidis,G (2421)-Kern,G (2340) Germany 2005}) 14... Qxc5 {[%emt 0:00:56] unterminated} 15. b4 {[%emt 0:02:56] unterminated} Qc7 {[%emt 0:02:38] unterminated} 16. Ne3 {[%emt 0:07:07] unterminated} Bd7 {[%emt 0:01:36] unterminated} 17. O-O {[%emt 0:00:45]} O-O {[%emt 0:01:02] unterminated} 18. Rf3 {[%emt 0:08:18] unterminated} Rc8 {[%emt 0:01:56] unterminated} 19. Ng4 {[%emt 0:00:17] unterminated} Bc6 {[%emt 0:10:45] unterminated} 20. Rh3 {[%emt 0:01:45] unterminated} Nd7 {[%emt 0:02:05]} 21. Bd3 {[%emt 0:00:58] unterminated} Nf8 {[%emt 0:02:46] unterminated} 22. f5 $11 {[%emt 0:05:24]} exf5 {[%emt 0:01:42]} 23. Bxf5 {[%emt 0:00:41]} Bd7 {[%emt 0:02:59]} 24. Bxd7 {[%emt 0:05:50]} Qxd7 {[%emt 0:00:58]} 25. Qg5 {[%emt 0:00:27]} Qe6 {[%emt 0:04:19]} 26. Rf1 {[%emt 0:13:57]} Qg6 {[%emt 0:02:09]} 27. Qh4 {[%emt 0:09:40]} Ra7 {[%emt 0:17:55]} 28. Rg3 {[%emt 0:07:09]} Qb6+ {[%emt 0:03:58]} 29. Kh1 {[%emt 0:00:21]} Ng6 {[%emt 0:00:43]} 30. Qg5 {[%emt 0:00:35]} Qd8 {[%emt 0:02:01]} 31. Qh5 {[%emt 0:09:48]} d4 {[%emt 0:03:45]} 32. Rh3 {[%emt 0:01:47]} h6 {[%emt 0:02:00]} 33. e6 {[%emt 0:02:32]} dxc3 {[%emt 0:00:55]} 34. exf7+ {[%emt 0:00:12]} Rxf7 {[%emt 0:00:06]} 35. Nxh6+ {[%emt 0:00:16]} gxh6 {[%emt 0:01:06]} 36. Qxg6+ {[%emt 0:00:04]} Rg7 {[%emt 0:00:27]} 37. Qe6+ {[%emt 0:01:04] normal} 1-0

[Event "DVM U20 2019"]
[Site "Braunschweig"]
[Date "2019.12.30"]
[Round "7"]
[White "Wiesner, Alexander"]
[Black "Jurga, Jonas Vincent"]
[Result "0-1"]
[ECO "D36"]
[WhiteElo "1960"]
[BlackElo "1896"]
[Annotator "NA RC"]
[PlyCount "20"]
[EventDate "2019.12.27"]
[EventType "team-tourn"]
[EventRounds "7"]
[EventCountry "GER"]
[SourceTitle "playchess.com"]
[Source "ChessBase"]
[SourceQuality "1"]
[WhiteTeam "Karlsruher SF"]
[BlackTeam "OSG Baden-Baden"]
[TimeControl "40/5400+30:1800+30"]

1. d4 {[%emt 0:00:00]} d5 {[%emt 0:00:00]} 2. c4 {[%emt 0:00:00]} e6 {[%emt 0:00:00]} 3. Nc3 {[%emt 0:00:00]} Nf6 {[%emt 0:00:00]} 4. cxd5 {[%emt 0:00:00]} exd5 {[%emt 0:00:00]} 5. Bg5 {[%emt 0:00:00]} c6 {[%emt 0:00:00]} 6. Qc2 {[%emt 0:00:11]} h6 {[%emt 0:00:00]} 7. Bxf6 {[%emt 0:13:52]} Qxf6 {[%emt 0:04:01]} 8. Nxd5 {[%emt 0:00:30]} Qxd4 {[%emt 0:00:09]} 9. Nc7+ {[%emt 0:00:31]} Kd8 {[%emt 0:00:15]} 10. Rd1 {[%emt 0:00:15]} Bb4+ {[%emt 0:00:04] normal} 0-1

[Event "DVM U20 2019"]
[Site "Braunschweig"]
[Date "2019.12.30"]
[Round "7"]
[White "Gorainow, Nikita"]
[Black "McPherson, Elisha"]
[Result "1/2-1/2"]
[ECO "C10"]
[WhiteElo "1946"]
[BlackElo "1975"]
[Annotator "NA"]
[PlyCount "30"]
[EventDate "2019.12.27"]
[EventType "team-tourn"]
[EventRounds "7"]
[EventCountry "GER"]
[SourceTitle "playchess.com"]
[Source "ChessBase"]
[SourceQuality "1"]
[WhiteTeam "SF Essen-Katernberg"]
[BlackTeam "SF Augsburg"]
[TimeControl "40/5400+30:1800+30"]

1. e4 {[%emt 0:00:00]} e6 {[%emt 0:00:00]} 2. d4 {[%emt 0:00:00]} d5 {[%emt 0:00:00]} 3. Nc3 {[%emt 0:00:00] unterminated} dxe4 {[%emt 0:00:00]} 4. Nxe4 {[%emt 0:00:00]} Bd7 $14 {[%emt 0:00:03]} 5. Nf3 {[%emt 0:03:46]} Bc6 {[%emt 0:00:09]} 6. Bd3 {[%emt 0:00:12]} Nd7 {[%emt 0:00:08]} 7. O-O {[%emt 0:04:52]} Ngf6 {[%emt 0:00:12]} 8. Qe2 {[%emt 0:05:20]} Nxe4 {[%emt 0:00:09]} 9. Bxe4 {[%emt 0:00:04]} Bxe4 {[%emt 0:00:05]} 10. Qxe4 {[%emt 0:00:06]} c6 {[%emt 0:00:21]} 11. c4 {[%emt 0:07:14]} Be7 {[%emt 0:06:32]} 12. Bf4 {[%emt 0:01:09]} O-O {[%emt 0:01:21]} 13. Rfd1 {[%emt 0:01:01]} Qb6 {[%emt 0:02:25]} 14. Qc2 Nf6 15. Rd3 {[%emt 0:17:40]} a5 {[%emt 0:05:59] normal} 1/2-1/2

[Event "DVM U20 2019"]
[Site "Braunschweig"]
[Date "2019.12.30"]
[Round "7"]
[White "Tiedemann, Fin Niklas"]
[Black "Freiherr von Hauff, Christopher"]
[Result "1-0"]
[ECO "C55"]
[WhiteElo "1936"]
[BlackElo "1868"]
[Annotator "NA"]
[PlyCount "26"]
[EventDate "2019.12.27"]
[EventType "team-tourn"]
[EventRounds "7"]
[EventCountry "GER"]
[SourceTitle "playchess.com"]
[Source "ChessBase"]
[SourceQuality "1"]
[WhiteTeam "Lübecker SV"]
[BlackTeam "SK Bebenhausen"]
[TimeControl "40/5400+30:1800+30"]

1. e4 {[%emt 0:00:00]} e5 {[%emt 0:00:00]} 2. Nf3 {[%emt 0:00:00]} Nc6 {[%emt 0:00:00]} 3. Bc4 {[%emt 0:00:00]} Nf6 {[%emt 0:00:00]} 4. d3 {[%emt 0:01:14]} d5 {[%emt 0:00:54]} 5. exd5 {[%emt 0:00:05]} Nxd5 {[%emt 0:00:21]} 6. O-O {[%emt 0:02:17]} Bc5 {[%emt 0:00:36]} 7. Nbd2 {[%emt 0:02:52]} O-O {[%emt 0:04:42]} 8. Ne4 {[%emt 0:01:53]} Be7 {[%emt 0:02:07]} 9. h3 {[%emt 0:02:13]} Nb6 {[%emt 0:14:25]} 10. Bb3 {[%emt 0:00:42]} a5 {[%emt 0:01:07]} 11. a3 {[%emt 0:00:16]} Nd4 {[%emt 0:04:30]} 12. Ba2 {[%emt 0:06:10] unterminated} Bf6 {[%emt 0:12:59]} 13. Re1 {[%emt 0:03:10] unterminated} Be6 $16 {[%emt 0:08:24] normal} 1-0

[Event "DVM U20 2019"]
[Site "Braunschweig"]
[Date "2019.12.30"]
[Round "7"]
[White "Triantafillidis, Simeon"]
[Black "Hennemann, Florian"]
[Result "1/2-1/2"]
[ECO "B98"]
[WhiteElo "1931"]
[BlackElo "1865"]
[Annotator "NA"]
[PlyCount "90"]
[EventDate "2019.12.27"]
[EventType "team-tourn"]
[EventRounds "7"]
[EventCountry "GER"]
[SourceTitle "playchess.com"]
[Source "ChessBase"]
[SourceQuality "1"]
[WhiteTeam "SF HN-Biberach"]
[BlackTeam "Sges Bensheim"]
[TimeControl "40/5400+30:1800+30"]

1. e4 {[%emt 0:00:00]} c5 {[%emt 0:00:00]} 2. Nf3 {[%emt 0:00:00]} d6 {[%emt 0:00:00]} 3. d4 {[%emt 0:00:00]} cxd4 {[%emt 0:00:00]} 4. Nxd4 {[%emt 0:00:00]} Nf6 {[%emt 0:00:00]} 5. Nc3 {[%emt 0:00:00]} a6 {[%emt 0:00:00]} 6. Bg5 {[%emt 0:00:07]} e6 {[%emt 0:00:00] unterminated} 7. f4 {[%emt 0:00:17]} Be7 {[%emt 0:00:00]} 8. Qf3 {[%emt 0:00:18]} Nc6 {[%emt 0:04:28]} 9. O-O-O {[%emt 0:00:55]} Qb6 {[%emt 0:01:03]} 10. Nxc6 {[%emt 0:01:21]} Qxc6 {[%emt 0:05:53]} 11. Qg3 {[%emt 0:02:22] B98: Sicilian Najdorf: 6 Bg5 e6 7 f4 Be7, sidelines} h6 {[%emt 0:12:28]} 12. Bxf6 {[%emt 0:05:13]} Bxf6 {[%emt 0:00:07]} 13. e5 {[%emt 0:00:53]} dxe5 {[%emt 0:00:06]} 14. fxe5 {[%emt 0:00:10]} Bg5+ {[%emt 0:00:27]} 15. Kb1 {[%emt 0:00:05]} O-O {[%emt 0:00:43]} 16. Be2 {[%emt 0:03:11]} Bd7 {[%emt 0:02:23] [#]} 17. Bf3 $146 {[%emt 0:04:57]} ({Predecessor:} 17. Rd6 Qc7 18. Ne4 Bb5 19. Nxg5 {½-½ (19) Izoria,Z (2583)-Corrales Jimenez,F (2601) Philadelphia 2013}) 17... Qc7 {[%emt 0:00:05]} 18. Ne4 {[%emt 0:00:06]} Be7 {[%emt 0:01:04]} 19. Rxd7 {[%emt 0:25:50]} Qxd7 {[%emt 0:02:00]} 20. Nf6+ {[%emt 0:00:09]} Bxf6 {[%emt 0:00:08]} 21. exf6 {[%emt 0:00:01] unterminated} g6 {[%emt 0:07:52] unterminated} 22. Rd1 {[%emt 0:03:48] unterminated} Qb5 $19 {[%emt 0:00:59]} 23. h4 {[%emt 0:02:57]} Qf5 {[%emt 0:09:23]} 24. Bxb7 {[%emt 0:03:01]} Rab8 {[%emt 0:01:41]} 25. Bxa6 {[%emt 0:04:42]} Qxf6 {[%emt 0:00:04]} 26. c3 {[%emt 0:01:37]} Rb6 {[%emt 0:03:05]} 27. Bc4 {[%emt 0:01:54]} Rfb8 {[%emt 0:05:04]} 28. Bb3 {[%emt 0:01:30]} Qf5+ {[%emt 0:00:21]} 29. Qd3 {[%emt 0:02:53]} Qg4 {[%emt 0:00:06]} 30. g3 {[%emt 0:01:30]} Rb5 {[%emt 0:07:03]} 31. Rf1 {[%emt 0:05:28]} R8b7 {[%emt 0:04:01]} 32. Rf4 {[%emt 0:08:54]} Qh3 {[%emt 0:01:14]} 33. Qf3 {[%emt 0:06:21]} Re7 {[%emt 0:04:42]} 34. Bc2 {[%emt 0:08:08]} f5 {[%emt 0:05:51]} 35. Bb3 {[%emt 0:05:28]} Rb8 {[%emt 0:03:00]} 36. Rd4 {[%emt 0:00:30]} Kg7 {[%emt 0:00:52]} 37. Qd3 {[%emt 0:01:15]} Qh1+ {[%emt 0:01:53]} 38. Kc2 {[%emt 0:00:35]} Qg2+ {[%emt 0:02:44]} 39. Kb1 {[%emt 0:00:49]} Qb7 {[%emt 0:00:42]} 40. Rd6 {[%emt 0:01:41]} Rbe8 {[%emt 0:02:12]} 41. Ba4 {[%emt 0:01:13]} Rf8 {[%emt 0:01:03]} 42. Bb3 {[%emt 0:02:34]} e5 {[%emt 0:01:09]} 43. Rd8 {[%emt 0:00:34]} Qh1+ {[%emt 0:06:50]} 44. Kc2 {[%emt 0:00:44]} Qg2+ {[%emt 0:00:17]} 45. Kb1 {[%emt 0:01:49]} Qh1+ {[%emt 0:00:23] normal} 1/2-1/2

[Event "DVM U20 2019"]
[Site "Braunschweig"]
[Date "2019.12.30"]
[Round "7"]
[White "Dornieden, Jonas"]
[Black "Meyling, Lennart"]
[Result "1-0"]
[ECO "D35"]
[WhiteElo "1912"]
[BlackElo "1955"]
[Annotator "NA"]
[PlyCount "119"]
[EventDate "2019.12.27"]
[EventType "team-tourn"]
[EventRounds "7"]
[EventCountry "GER"]
[SourceTitle "playchess.com"]
[Source "ChessBase"]
[SourceQuality "1"]
[WhiteTeam "SK Lehrte 1919"]
[BlackTeam "Hamburger SK"]
[TimeControl "40/5400+30:1800+30"]

1. d4 {[%emt 0:00:00]} d5 {[%emt 0:00:00]} 2. c4 {[%emt 0:00:00]} e6 {[%emt 0:00:00]} 3. Nc3 {[%emt 0:00:00]} Nf6 {[%emt 0:00:00]} 4. cxd5 {[%emt 0:00:00]} exd5 {[%emt 0:00:02]} 5. Bg5 {[%emt 0:00:00]} Be7 {[%emt 0:00:07]} 6. e3 {[%emt 0:00:05]} c6 {[%emt 0:00:09]} 7. Bd3 {[%emt 0:00:19]} Nbd7 {[%emt 0:00:13] unterminated} 8. Nf3 {[%emt 0:01:21]} O-O {[%emt 0:00:12]} 9. O-O {[%emt 0:00:24] unterminated} Re8 {[%emt 0:01:20]} 10. Qc2 {[%emt 0:01:38]} Nf8 {[%emt 0:00:09]} 11. h3 {[%emt 0:01:59]} Ne4 {[%emt 0:02:20] unterminated} 12. Bxe7 {[%emt 0:05:45] D36: Queen's Gambit Declined: Exchange Variation: Main line (5 Bg5 c6 6 Qc2)} Qxe7 {[%emt 0:00:34] unterminated} 13. Rab1 {[%emt 0:07:52]} (13. Bxe4 dxe4 14. Nd2 f5 15. Nc4 Ng6 16. f4 exf3 17. Rxf3 Be6 18. Qd3 Rad8 19. Rf2 Kh8 20. Nd2 c5 21. Nf3 a6 22. Rd1 {1-0 (85) Sarana,A (2618)-Short,N (2646) Moscow 2018}) 13... a5 {[%emt 0:04:50] unterminated} 14. Na4 {[%emt 0:10:05] unterminated} Qc7 {[%emt 0:04:42] unterminated} 15. a3 {[%emt 0:05:01] unterminated} f5 $146 {[%emt 0:06:37] unterminated} ({Predecessor:} 15... Bf5 16. Nh4 Bg6 17. Nxg6 Nxg6 18. b4 axb4 19. Rxb4 Qa5 20. Bxe4 dxe4 {1-0 (73) Nazarenus,M (2110)-Wolter,J (1817) Baunatal 2002}) 16. Ne5 {[%emt 0:05:59] unterminated} Nd7 {[%emt 0:04:58] unterminated} 17. f4 {[%emt 0:03:05] unterminated} Rb8 {[%emt 0:07:12] unterminated} 18. Bxe4 {[%emt 0:02:53] unterminated} fxe4 {[%emt 0:01:16] unterminated} 19. Nc3 {[%emt 0:09:11] unterminated} Qd8 {[%emt 0:03:08] unterminated} 20. Qf2 {[%emt 0:11:27] unterminated} Rf8 $14 {[%emt 0:04:04]} 21. Qg3 {[%emt 0:01:58] unterminated} Rf6 {[%emt 0:02:17] unterminated} 22. Ng4 {[%emt 0:06:48] unterminated} Rd6 {[%emt 0:03:18]} (22... Rf8 $1 $14) 23. f5 {[%emt 0:02:07]} Nf6 {[%emt 0:00:50]} 24. Qe5 {[%emt 0:05:28]} Qf8 {[%emt 0:02:03]} 25. Nxf6+ {[%emt 0:05:41]} gxf6 {[%emt 0:00:49]} 26. Qg3+ {[%emt 0:00:54]} Kh8 {[%emt 0:01:44]} 27. Rf4 {[%emt 0:02:08]} b6 {[%emt 0:01:39]} 28. Rbf1 {[%emt 0:02:38]} Rb7 {[%emt 0:01:11]} 29. Rg4 Rdd7 {[%emt 0:03:06]} 30. Qh4 {[%emt 0:04:24]} Rg7 {[%emt 0:04:00]} 31. Rg6 {[%emt 0:01:04]} Rbf7 {[%emt 0:01:12]} 32. Na4 {[%emt 0:04:00]} Qd8 {[%emt 0:00:21]} 33. g4 {[%emt 0:01:04]} Kg8 {[%emt 0:01:57]} 34. Rxg7+ {[%emt 0:00:09]} Rxg7 {[%emt 0:00:08]} 35. Qg3 {[%emt 0:01:09]} Ba6 {[%emt 0:02:23]} 36. Rc1 {[%emt 0:00:12]} Bb5 {[%emt 0:00:23]} 37. Nc3 {[%emt 0:00:16]} Bc4 {[%emt 0:00:25]} 38. Nxe4 {[%emt 0:00:20]} Bd3 {[%emt 0:03:33]} 39. Nf2 {[%emt 0:00:55]} Bxf5 {[%emt 0:00:11]} 40. Rxc6 {[%emt 0:00:09]} h5 {[%emt 0:02:26]} 41. Qd6 {[%emt 0:11:52]} Qxd6 {[%emt 0:00:37]} 42. Rxd6 {[%emt 0:00:12]} hxg4 {[%emt 0:03:00]} 43. hxg4 {[%emt 0:00:31]} Bb1 {[%emt 0:04:22]} 44. Rxf6 {[%emt 0:09:36]} Re7 {[%emt 0:02:42]} 45. Rxb6 {[%emt 0:01:37]} Rxe3 {[%emt 0:00:09]} 46. Rb5 {[%emt 0:00:54]} Ba2 {[%emt 0:00:15]} 47. Rxa5 {[%emt 0:01:00]} Rb3 {[%emt 0:01:20]} 48. Rxd5 {[%emt 0:04:18]} Rxb2 {[%emt 0:00:09]} 49. Rd8+ {[%emt 0:00:42]} Kf7 {[%emt 0:00:09]} 50. Nd3 {[%emt 0:01:00]} Rb1+ {[%emt 0:01:07]} 51. Kf2 {[%emt 0:00:17]} Ke7 {[%emt 0:00:16]} 52. Ra8 {[%emt 0:00:38]} Kf6 {[%emt 0:04:03]} 53. Ne5 {[%emt 0:00:59]} Rb3 {[%emt 0:01:10]} 54. a4 {[%emt 0:00:36]} Kg5 {[%emt 0:00:35]} 55. a5 {[%emt 0:00:47]} Kf4 {[%emt 0:00:10]} 56. a6 {[%emt 0:03:09]} Rb2+ {[%emt 0:00:28]} 57. Ke1 {[%emt 0:00:54]} Ke3 {[%emt 0:01:19]} 58. Kd1 {[%emt 0:00:28]} Kxd4 {[%emt 0:01:42]} 59. a7 {[%emt 0:00:43]} Bd5 {[%emt 0:04:40]} 60. Rd8 {[%emt 0:00:06] normal} 1-0